[Event "Czech Extraliga 2023-24"]
[Site "Czech Republic"]
[Date "2024.04.06"]
[Round "10.4"]
[White "Miesbauer, Jan"]
[Black "Movsesian, Sergei"]
[Result "1/2-1/2"]
[ECO "B43"]
[WhiteElo "2392"]
[BlackElo "2616"]
[Annotator "TA"]
[PlyCount "86"]
[EventDate "2023.10.14"]
[EventCountry "CZE"]
[SourceTitle "playchess.com"]
[Source "ChessBase"]
[SourceQuality "1"]
[TimeControl "40/5400+30:1800+30"]

{[%evp 19,86,-26,-25,-38,-16,-27,18,12,13,14,17,-44,3,13,4,0,8,-4,59,18,61,64,110,40,43,37,25,0,0,0,0,-5,62,70,290,50,67,34,21,39,20,30,21,0,33,37,36,36,55,37,66,40,114,22,23,13,6,25,10,0,25,0,0,0,0,0,0,0,0]} 1. e4 {[%emt 0:00:05]} c5 {[%emt 0:00:07]} 2. Nf3 {[%emt 0:00:06]} e6 {[%emt 0:00:15]} 3. d4 {[%emt 0:00:09]} cxd4 {[%emt 0:00:05]} 4. Nxd4 {[%emt 0:00:05]} a6 {[%emt 0:00:08]} 5. Nc3 {[%emt 0:00:31]} Qc7 {[%emt 0:00:16]} 6. Be3 {[%emt 0:03:27]} Nf6 {[%emt 0:02:22]} 7. a3 {[%emt 0:11:27]} b5 {[%emt 0:02:00]} 8. f3 {[%emt 0:02:01] B43: Sicilian: Kan Variation: 5 Nc3.} Bb7 {[%emt 0:01:51]} 9. Qd2 {[%emt 0:01:46]} Nc6 {[%emt 0:08:31]} 10. Nb3 {[%emt 0:13:18]} Ne5 {[%emt 0:04:59]} 11. Qf2 {[%emt 0:01:52]} d5 {[%emt 0:05:19]} 12. Bb6 {[%emt 0:08:01]} Qc8 $146 {[%emt 0:01:37]} ({Predecessor:} 12... Qb8 13. O-O-O Ned7 14. Na5 Bc8 15. Be3 Qc7 16. Nb3 Bb7 17. exd5 Nxd5 18. Nxd5 Bxd5 {0-1 Sarmiento Afonso,S (2183)-Garcia Blanco,O (2204) Las Palmas Insular-chT Pref 2011 (11.1)}) 13. Bd4 {[%emt 0:12:33]} Bd6 {[%emt 0:16:30]} 14. f4 $1 {[%emt 0:10:21]} Neg4 {[%emt 0:00:32]} (14... Nxe4 $2 15. Nxe4 dxe4 16. fxe5 $18) 15. Qd2 {[%emt 0:04:07]} ({White should try} 15. Qg3 $11 dxe4 16. h3) 15... e5 {[%emt 0:02:17]} (15... Nxe4 $15 16. Nxe4 dxe4 17. Bxg7 Rg8 18. Qxd6 Qxc2 (18... Rxg7 19. Nd4 $17)) 16. fxe5 $11 {[%emt 0:00:32]} Nxe5 {[%emt 0:00:07]} 17. exd5 {[%emt 0:03:51]} O-O $1 {[%emt 0:02:21]} 18. O-O-O {[%emt 0:01:38]} Qc7 {[%emt 0:01:51]} ({Black should play} 18... Rd8 $11) 19. Kb1 {[%emt 0:02:42]} (19. Bxb5 $5 axb5 20. Nxb5 $14) 19... Rac8 {[%emt 0:03:32]} 20. Bd3 $1 {[%emt 0:05:13]} Rfe8 {[%emt 0:08:38] [#]} (20... Bxd5 $14 21. Qg5 h6 (21... Nxd3 22. Bxf6 g6 23. Qh6 Bxb3 24. Qg7#) 22. Qxf6 (22. Nxd5 Nxd5 23. Qg3 g6 $11) 22... gxf6 23. Nxd5 Qb8) 21. Rhf1 {[%emt 0:02:12]} (21. Bf5 $1 $16 {[%cal Rf5c8]}) 21... Nxd5 $14 {[%emt 0:02:28]} 22. Bf5 {[%emt 0:02:23]} Rcd8 {[%emt 0:11:18]} 23. Qg5 {[%emt 0:01:51]} h6 {[%emt 0:04:49]} 24. Qg3 {[%emt 0:01:54]} Ne7 {[%emt 0:02:31]} 25. Be4 {[%emt 0:01:39]} N7g6 {[%emt 0:01:09]} (25... Bxe4 $1 $11 26. Nxe4 N7g6) 26. Nd5 $14 {[%emt 0:02:32]} Qb8 $2 {[%emt 0:03:52] [#]} (26... Bxd5 $14 27. Bxd5 Rd7) 27. Qf2 $2 {[%emt 0:00:57]} (27. Rxf7 $1 $18 Kxf7 28. Bxg6+ Kg8 (28... Nxg6 $2 {perishes.} 29. Rf1+ $18) 29. Bxe8 (29. Nf6+ gxf6 30. Bxe8+ Kh8 $18) 29... Bxd5 30. Bh5 Bxb3 31. cxb3 (31. Qxb3+ Nc4 $18)) 27... Rf8 {[%emt 0:01:44]} 28. Bc3 {[%emt 0:02:42]} (28. Ba7 $5 Qc8 29. Bb6 Bxd5 (29... Ng4 30. Qd4 $16) 30. Bxd5 $14) 28... f5 {[%emt 0:02:35]} 29. Bxf5 {[%emt 0:01:17]} Bxd5 $1 {[%emt 0:00:14]} 30. Rxd5 {[%emt 0:00:53]} Ne7 $1 {[%emt 0:00:08]} 31. Be6+ {[%emt 0:02:59]} Kh8 {[%emt 0:01:09]} (31... Kh7 $5 32. Qe2 (32. Qxf8 Rxf8 33. Rxf8 Qxf8 $11) 32... Nxd5 33. Bxd5 Rxf1+ 34. Qxf1 Qc8 $11) 32. Qxf8+ {[%emt 0:00:53]} Rxf8 {[%emt 0:00:03]} 33. Rxf8+ {[%emt 0:00:05]} Qxf8 {[%emt 0:00:04]} 34. Rxd6 {[%emt 0:00:05]} N7c6 {[%emt 0:02:26]} 35. Rd1 {[%emt 0:00:39]} Qe7 {[%emt 0:04:28]} (35... Nc4 $14) 36. Bd5 {[%emt 0:00:19]} (36. Bc8 $16) 36... b4 $1 $11 {[%emt 0:01:55]} 37. axb4 {[%emt 0:00:36]} Nxb4 {[%emt 0:00:04]} 38. Be4 {[%emt 0:01:01]} Nec6 $1 {[%emt 0:00:42]} 39. Re1 {[%emt 0:00:41]} Qf7 {[%emt 0:01:31]} 40. Bf3 {[%emt 0:00:34]} Nd5 {[%emt 0:02:20]} 41. Bd2 {[%emt 0:02:42]} Ndb4 {[%emt 0:03:38]} 42. Bc3 {[%emt 0:06:38]} Nd5 {[%emt 0:00:55]} 43. Bd2 {[%emt 0:00:07]} Ndb4 {[%emt 0:00:24]} 1/2-1/2

[Event "Czech Extraliga 2023-24"]
[Site "Czech Republic"]
[Date "2024.04.06"]
[Round "10.5"]
[White "Laznicka, Viktor"]
[Black "Omelja, Artem"]
[Result "1/2-1/2"]
[ECO "C65"]
[WhiteElo "2597"]
[BlackElo "2444"]
[Annotator "RC"]
[PlyCount "81"]
[EventDate "2023.10.14"]
[EventCountry "CZE"]
[SourceTitle "playchess.com"]
[Source "ChessBase"]
[SourceQuality "1"]
[TimeControl "40/5400+30:1800+30"]

1. e4 {[%emt 0:02:03]} e5 {[%emt 0:00:07]} 2. Nf3 {[%emt 0:00:06]} Nc6 {[%emt 0:00:08]} 3. Bb5 {[%emt 0:00:58]} Nf6 {[%emt 0:00:09]} 4. d3 {[%emt 0:06:51]} Bc5 {[%emt 0:00:14]} 5. Bxc6 {[%emt 0:01:12]} dxc6 {[%emt 0:00:35]} 6. Qe2 {[%emt 0:00:19]} Nd7 {[%emt 0:02:24]} 7. Be3 {[%emt 0:04:18]} Qe7 {[%emt 0:02:53]} 8. Nbd2 {[%emt 0:01:32]} Nf8 {[%emt 0:02:41]} 9. O-O-O {[%emt 0:04:32]} Bg4 {[%emt 0:03:42]} 10. h3 {[%emt 0:04:06]} Bxf3 {[%emt 0:01:06]} 11. Nxf3 {[%emt 0:00:10]} O-O-O {[%emt 0:02:25]} 12. g3 {[%emt 0:15:12]} Bxe3+ {[%emt 0:05:19]} 13. fxe3 {[%emt 0:07:19]} f6 {[%emt 0:01:15]} 14. g4 {[%emt 0:01:26]} Ne6 {[%emt 0:01:29]} 15. Rdg1 {[%emt 0:03:01]} h6 {[%emt 0:03:15]} 16. h4 {[%emt 0:00:25]} b5 {[%emt 0:00:44]} 17. h5 {[%emt 0:06:56]} Kb7 {[%emt 0:01:25]} 18. Kb1 {[%emt 0:01:34]} Rd7 {[%emt 0:01:05]} 19. Rc1 {[%emt 0:01:21]} Rhd8 {[%emt 0:02:44]} 20. Rhd1 {[%emt 0:00:53]} a6 {[%emt 0:02:37]} 21. Nh4 {[%emt 0:02:49]} Nc5 {[%emt 0:06:10]} 22. Nf5 {[%emt 0:01:00]} Qe6 {[%emt 0:02:28]} 23. Qg2 {[%emt 0:06:07]} Qe8 {[%emt 0:12:17]} 24. Rd2 {[%emt 0:01:45]} Ne6 {[%emt 0:00:58]} 25. Rcd1 {[%emt 0:00:41]} Ng5 {[%emt 0:05:27]} 26. a3 {[%emt 0:03:09]} Qe6 {[%emt 0:02:44]} 27. b3 {[%emt 0:06:16]} Kb6 {[%emt 0:06:36]} 28. Kb2 c5 {[%emt 0:31:33]} 29. Qe2 {[%emt 0:08:39]} Qc6 {[%emt 0:00:00]} 30. Ka2 {[%emt 0:04:55]} Ka7 {[%emt 0:00:00]} 31. Ng3 {[%emt 0:00:20]} Qb6 {[%emt 0:00:00]} 32. Rb1 {[%emt 0:01:10]} Qa5 {[%emt 0:00:00]} 33. Rdd1 {[%emt 0:00:26]} c6 {[%emt 0:00:00]} 34. Kb2 {[%emt 0:01:02]} Qb6 {[%emt 0:00:00]} 35. Ra1 {[%emt 0:01:35]} Kb7 {[%emt 0:00:00]} 36. a4 {[%emt 0:01:38]} a5 {[%emt 0:00:00]} 37. Qe1 {[%emt 0:01:05]} Ra8 {[%emt 0:00:00]} 38. Qc3 {[%emt 0:00:29]} Ne6 {[%emt 0:00:00]} 39. Nf5 {[%emt 0:00:26]} Qa6 {[%emt 0:05:30]} 40. Rdb1 b4 {[%emt 0:00:00]} 41. Qc4 {[%emt 0:06:08]} 1/2-1/2

[Event "Czech Extraliga 2023-24"]
[Site "Czech Republic"]
[Date "2024.04.06"]
[Round "10.5"]
[White "Nagy, Gabor"]
[Black "Haba, Petr"]
[Result "1/2-1/2"]
[ECO "D46"]
[WhiteElo "2436"]
[BlackElo "2437"]
[Annotator "TA"]
[PlyCount "65"]
[EventDate "2023.10.14"]
[EventCountry "CZE"]
[SourceTitle "playchess.com"]
[Source "ChessBase"]
[SourceQuality "1"]
[TimeControl "40/5400+30:1800+30"]

{[%evp 18,65,16,18,12,27,31,0,31,35,41,37,33,30,30,33,20,32,52,35,28,25,30,20,22,20,33,25,29,27,25,13,20,0,18,0,8,0,7,0,11,4,9,0,0,0,13,0,0,0]} 1. d4 {[%emt 0:00:25]} d5 {[%emt 0:00:17]} 2. c4 {[%emt 0:00:32]} c6 {[%emt 0:00:17]} 3. Nf3 {[%emt 0:00:41]} Nf6 {[%emt 0:00:10]} 4. e3 {[%emt 0:00:30]} e6 {[%emt 0:00:16]} 5. Bd3 {[%emt 0:01:40]} dxc4 {[%emt 0:00:17]} 6. Bxc4 {[%emt 0:00:15]} Nbd7 {[%emt 0:00:10]} 7. O-O {[%emt 0:01:13]} Bd6 {[%emt 0:00:14]} 8. Nc3 {[%emt 0:00:52]} O-O {[%emt 0:03:26]} 9. e4 {[%emt 0:01:00]} e5 {[%emt 0:00:22]} 10. Be3 {[%emt 0:00:47]} exd4 {[%emt 0:05:05]} 11. Bxd4 {[%emt 0:01:22] Strongly threatening e5.} Qc7 {[%emt 0:00:11]} 12. Kh1 {[%emt 0:02:02]} Ne5 {[%emt 0:03:31]} 13. Nxe5 {[%emt 0:01:32]} Bxe5 {[%emt 0:01:08]} 14. Bxe5 {[%emt 0:00:19]} Qxe5 {[%emt 0:00:01]} 15. f4 {[%emt 0:00:17]} Qc5 {[%emt 0:00:04]} 16. Bd3 {[%emt 0:00:23]} Rd8 {[%emt 0:09:59]} 17. Qf3 {[%emt 0:04:08]} Qh5 {[%emt 0:11:37]} 18. Qxh5 {[%emt 0:13:06]} Nxh5 {[%emt 0:00:57]} 19. Be2 {[%emt 0:01:23]} Nf6 {[%emt 0:03:42]} 20. h3 {[%emt 0:01:45]} Kf8 {[%emt 0:08:34]} 21. Rad1 {[%emt 0:06:36] Repels Rd2} Rxd1 {[%emt 0:02:01]} 22. Rxd1 {[%emt 0:01:35]} Ke7 {[%emt 0:00:05]} 23. g4 {[%emt 0:05:40]} Nd7 {[%emt 0:09:20]} 24. Kg2 {[%emt 0:02:33]} h6 {[%emt 0:02:53] The position is equal.} 25. h4 {[%emt 0:01:01]} (25. e5 {with more complications.} g5 26. e6 Nf6 27. exf7 Be6 28. f8=R) 25... f6 {[%emt 0:03:29]} 26. h5 {[%emt 0:02:34]} a5 {[%emt 0:01:33]} 27. Kf3 {[%emt 0:02:27]} Nc5 {[%emt 0:03:02]} 28. Ke3 {[%emt 0:02:11]} Be6 {[%emt 0:03:20]} 29. b3 {[%emt 0:03:01]} Rd8 {[%emt 0:03:17]} 30. Rc1 {[%emt 0:06:13]} Kd6 {[%emt 0:02:06]} 31. Rd1+ {[%emt 0:00:39]} Ke7 {[%emt 0:00:24]} 32. Rc1 {[%emt 0:00:16]} Kd6 {[%emt 0:00:04]} 33. Rd1+ {[%emt 0:00:07] Weighted Error Value: White=0.07 (flawless) /Black=0.05 (flawless) .  Inaccurate:     	White=1     	Black=1      OK:         	White=6     	Black=11} 1/2-1/2

[Event "Czech Extraliga 2023-24"]
[Site "Czech Republic"]
[Date "2024.04.06"]
[Round "10.5"]
[White "Rubes, Jan"]
[Black "Kraus, Tomas"]
[Result "1/2-1/2"]
[ECO "D36"]
[WhiteElo "2432"]
[BlackElo "2488"]
[Annotator "RC"]
[PlyCount "24"]
[EventDate "2023.10.14"]
[EventCountry "CZE"]
[SourceTitle "playchess.com"]
[Source "ChessBase"]
[SourceQuality "1"]
[TimeControl "40/5400+30:1800+30"]

1. d4 {[%emt 0:00:02]} d5 {[%emt 0:00:26]} 2. c4 {[%emt 0:00:08]} e6 {[%emt 0:00:06]} 3. Nc3 {[%emt 0:00:30]} Nf6 {[%emt 0:00:33]} 4. Nf3 {[%emt 0:03:08]} Nbd7 {[%emt 0:02:00]} 5. Bg5 {[%emt 0:02:39]} Be7 {[%emt 0:01:59]} 6. e3 {[%emt 0:00:35]} c6 {[%emt 0:00:07]} 7. Bd3 {[%emt 0:03:13]} h6 {[%emt 0:04:48]} 8. Bh4 {[%emt 0:00:10]} O-O {[%emt 0:01:13]} 9. cxd5 {[%emt 0:06:11]} exd5 {[%emt 0:00:40]} 10. O-O {[%emt 0:01:30]} Ne4 {[%emt 0:07:35]} 11. Bxe7 {[%emt 0:00:43]} Qxe7 {[%emt 0:00:28]} 12. Qc2 {[%emt 0:11:32]} Re8 {[%emt 0:08:03]} 1/2-1/2

[Event "Czech Extraliga 2023-24"]
[Site "Czech Republic"]
[Date "2024.04.06"]
[Round "10.5"]
[White "Jurcik, Marian"]
[Black "Piesik, Piotr"]
[Result "1/2-1/2"]
[ECO "D15"]
[WhiteElo "2420"]
[BlackElo "2417"]
[Annotator "TA"]
[PlyCount "37"]
[EventDate "2023.10.14"]
[EventCountry "CZE"]
[SourceTitle "playchess.com"]
[Source "ChessBase"]
[SourceQuality "1"]
[TimeControl "40/5400+30:1800+30"]

{[%evp 15,37,18,17,0,4,7,16,10,29,29,30,40,56,27,23,16,16,27,33,25,41,0,0,0]} 1. c4 {[%emt 0:00:13]} c6 {[%emt 0:00:21]} 2. Nf3 {[%emt 0:01:02]} d5 {[%emt 0:00:11]} 3. e3 {[%emt 0:01:51]} Nf6 {[%emt 0:00:25]} 4. Nc3 {[%emt 0:01:01]} a6 {[%emt 0:00:31]} 5. d4 {[%emt 0:02:42]} b5 {[%emt 0:01:13]} 6. b3 {[%emt 0:07:52]} Bg4 {[%emt 0:04:08]} 7. Be2 {[%emt 0:09:30]} e6 {[%emt 0:02:30]} 8. O-O {[%emt 0:01:10]} Nbd7 {[%emt 0:01:33]} 9. Nd2 {[%emt 0:12:58]} Bxe2 {[%emt 0:14:24]} 10. Qxe2 {[%emt 0:00:11]} Qa5 {[%emt 0:01:37]} 11. Bb2 {[%emt 0:04:46]} Ba3 {[%emt 0:01:47]} 12. Bxa3 {[%emt 0:00:35]} Qxa3 {[%emt 0:00:06]} 13. c5 {[%emt 0:05:46]} e5 {[%emt 0:11:10]} 14. f4 {[%emt 0:10:51]} e4 {[%emt 0:15:15]} 15. Ndb1 {[%emt 0:14:58]} Qa5 {[%emt 0:02:06]} 16. a3 {[%emt 0:02:14]} Qc7 {[%emt 0:03:32]} 17. b4 {[%emt 0:02:47]} a5 {[%emt 0:01:30]} 18. Nd2 {[%emt 0:00:13]} (18. Nxb5 $5 cxb5 19. Nc3 $11) 18... h5 {[%emt 0:02:27]} 19. Nb3 {[%emt 0:06:06] Weighted Error Value: White=0.11 (very precise) /Black=0.07 (flawless) .  Inaccurate:     	White=2     	---        OK:         	White=6     	Black=3} 1/2-1/2

[Event "Czech Extraliga 2023-24"]
[Site "Czech Republic"]
[Date "2024.04.06"]
[Round "10.5"]
[White "Blahynka, Martin"]
[Black "Simacek, Pavel"]
[Result "1/2-1/2"]
[ECO "A29"]
[WhiteElo "2375"]
[BlackElo "2456"]
[Annotator "RC"]
[PlyCount "236"]
[EventDate "2023.10.14"]
[EventCountry "CZE"]
[SourceTitle "playchess.com"]
[Source "ChessBase"]
[SourceQuality "1"]
[TimeControl "40/5400+30:1800+30"]

1. c4 {[%emt 0:00:04]} e5 {[%emt 0:00:24]} 2. Nc3 {[%emt 0:00:06]} Nf6 {[%emt 0:00:05]} 3. Nf3 {[%emt 0:00:04]} Nc6 {[%emt 0:00:07]} 4. g3 {[%emt 0:00:15]} Nd4 {[%emt 0:00:09]} 5. Bg2 {[%emt 0:00:29]} Nxf3+ {[%emt 0:00:12]} 6. Bxf3 {[%emt 0:00:12]} Bb4 {[%emt 0:00:21]} 7. Qb3 {[%emt 0:06:09]} a5 {[%emt 0:00:29]} 8. a3 {[%emt 0:07:19]} Bxc3 {[%emt 0:03:06]} 9. Qxc3 {[%emt 0:00:06]} d6 {[%emt 0:00:24]} 10. b4 {[%emt 0:00:45]} axb4 {[%emt 0:04:18]} 11. axb4 {[%emt 0:01:07]} Rxa1 {[%emt 0:00:25]} 12. Qxa1 {[%emt 0:00:04]} O-O {[%emt 0:00:07]} 13. Bb2 {[%emt 0:04:44]} c6 {[%emt 0:16:57]} 14. O-O {[%emt 0:09:48]} Bg4 {[%emt 0:02:56]} 15. Bxg4 {[%emt 0:02:06]} Nxg4 {[%emt 0:00:05]} 16. f3 {[%emt 0:15:23]} Nh6 {[%emt 0:04:26]} 17. Qa7 {[%emt 0:06:47]} Qd7 {[%emt 0:04:14]} 18. Ra1 {[%emt 0:07:37]} Nf5 {[%emt 0:04:43]} 19. Qb6 {[%emt 0:04:39]} Ne7 {[%emt 0:01:50]} 20. Ra7 {[%emt 0:04:53]} Rb8 {[%emt 0:00:38]} 21. Qe3 {[%emt 0:05:02]} f6 {[%emt 0:01:41]} 22. d4 {[%emt 0:03:46]} Qe6 {[%emt 0:24:01]} 23. Qd3 {[%emt 0:01:55]} exd4 {[%emt 0:16:12]} 24. Bxd4 {[%emt 0:00:10]} d5 {[%emt 0:00:05]} 25. c5 {[%emt 0:03:03]} Qd7 {[%emt 0:02:58]} 26. Bf2 {[%emt 0:03:30]} Rd8 {[%emt 0:01:12]} 27. Kg2 {[%emt 0:03:17]} Ng6 {[%emt 0:01:45]} 28. Qd4 {[%emt 0:01:37]} Qe7 {[%emt 0:03:55]} 29. b5 {[%emt 0:06:15]} Qxe2 {[%emt 0:01:21]} 30. Rxb7 {[%emt 0:00:41]} Ne5 {[%emt 0:01:21]} 31. Qe3 {[%emt 0:03:31]} Qxe3 {[%emt 0:04:37]} 32. Bxe3 {[%emt 0:00:04]} cxb5 {[%emt 0:00:04]} 33. f4 {[%emt 0:00:36]} Nc6 {[%emt 0:01:06]} 34. Rxb5 {[%emt 0:00:37]} d4 {[%emt 0:00:07]} 35. Bd2 {[%emt 0:00:15]} Rd5 {[%emt 0:00:15]} 36. Kf3 {[%emt 0:00:50]} f5 {[%emt 0:00:22]} 37. Ke2 {[%emt 0:00:31]} d3+ {[%emt 0:00:23]} 38. Ke3 {[%emt 0:00:32]} Nd4 {[%emt 0:01:22]} 39. Rb8+ {[%emt 0:00:05]} Kf7 {[%emt 0:00:01]} 40. Bc3 {[%emt 0:00:47]} Ne6 {[%emt 0:00:48]} 41. Rb7+ {[%emt 0:02:46]} Kg8 {[%emt 0:14:54]} 42. c6 {[%emt 0:07:06]} Rc5 {[%emt 0:05:16]} 43. Bxg7 {[%emt 0:01:15]} Rxc6 {[%emt 0:01:14]} 44. Be5 {[%emt 0:01:19]} Rc2 {[%emt 0:00:07]} 45. Re7 {[%emt 0:06:10]} Nc5 {[%emt 0:02:05]} 46. Rg7+ {[%emt 0:00:11]} Kf8 {[%emt 0:00:14]} 47. Rc7 {[%emt 0:13:53]} Re2+ {[%emt 0:02:42]} 48. Kf3 {[%emt 0:00:03]} Ne4 {[%emt 0:00:26]} 49. Bc3 {[%emt 0:00:18]} Rxh2 {[%emt 0:05:27]} 50. Bb4+ {[%emt 0:01:10]} Ke8 {[%emt 0:00:09]} 51. Re7+ {[%emt 0:01:20]} Kd8 {[%emt 0:00:04]} 52. Re5 {[%emt 0:00:11]} d2 {[%emt 0:00:56]} 53. Rd5+ {[%emt 0:00:13]} Kc8 {[%emt 0:00:27]} 54. g4 {[%emt 0:01:08]} Rh3+ {[%emt 0:01:04]} 55. Kg2 {[%emt 0:00:43]} Rg3+ {[%emt 0:02:38]} 56. Kh2 {[%emt 0:00:06]} fxg4 {[%emt 0:00:43]} 57. Bxd2 {[%emt 0:00:34]} Rf3 {[%emt 0:00:03]} 58. Be1 {[%emt 0:00:50]} Rf1 {[%emt 0:00:04]} 59. Bg3 {[%emt 0:00:23]} Rf3 {[%emt 0:00:25]} 60. Be1 {[%emt 0:00:13]} Re3 {[%emt 0:01:01]} 61. Ba5 {[%emt 0:00:52]} Rh3+ {[%emt 0:00:47]} 62. Kg2 {[%emt 0:00:14]} h5 {[%emt 0:00:06]} 63. Re5 {[%emt 0:00:44]} Rg3+ {[%emt 0:00:06]} 64. Kh2 {[%emt 0:00:11]} Re3 {[%emt 0:01:16]} 65. Rxh5 {[%emt 0:00:35]} Re2+ {[%emt 0:00:03]} 66. Kg1 {[%emt 0:00:04]} g3 {[%emt 0:00:19]} 67. Re5 {[%emt 0:00:43]} Kd7 {[%emt 0:00:33]} 68. Bb4 {[%emt 0:00:40]} Kc6 {[%emt 0:00:50]} 69. f5 {[%emt 0:00:23]} Rf2 {[%emt 0:00:42]} 70. Rxe4 {[%emt 0:00:16]} Rxf5 {[%emt 0:00:03]} 71. Kg2 {[%emt 0:00:31]} Kd5 {[%emt 0:00:03]} 72. Rg4 {[%emt 0:00:16]} Re5 {[%emt 0:00:07]} 73. Rxg3 {[%emt 0:00:20]} Re2+ {[%emt 0:00:15]} 74. Kf3 {[%emt 0:00:03]} Rb2 {[%emt 0:00:05]} 75. Bc3 {[%emt 0:00:21]} Rb3 {[%emt 0:00:09]} 76. Ke2 {[%emt 0:00:02]} Ke4 {[%emt 0:00:18]} 77. Re3+ {[%emt 0:00:09]} Kd5 {[%emt 0:00:09]} 78. Kd3 {[%emt 0:00:02]} Rb1 {[%emt 0:00:29]} 79. Re5+ {[%emt 0:00:07]} Kd6 {[%emt 0:00:12]} 80. Rf5 {[%emt 0:00:29]} Rh1 {[%emt 0:00:23]} 81. Bd4 {[%emt 0:00:31]} Rd1+ {[%emt 0:00:09]} 82. Ke4 {[%emt 0:00:26]} Re1+ {[%emt 0:00:09]} 83. Be3 {[%emt 0:00:03]} Ke6 {[%emt 0:00:30]} 84. Re5+ {[%emt 0:00:11]} Kd6 {[%emt 0:00:09]} 85. Rb5 {[%emt 0:00:02]} Kc6 {[%emt 0:00:11]} 86. Rb6+ {[%emt 0:00:03]} Kc7 {[%emt 0:00:04]} 87. Re6 {[%emt 0:00:58]} Kd7 {[%emt 0:00:07]} 88. Ra6 {[%emt 0:01:33]} Kc7 {[%emt 0:00:12]} 89. Kd4 {[%emt 0:00:17]} Rd1+ {[%emt 0:00:11]} 90. Kc5 {[%emt 0:00:10]} Kd7 {[%emt 0:01:20]} 91. Bd4 {[%emt 0:00:07]} Rf1 {[%emt 0:01:09]} 92. Kd5 {[%emt 0:00:30]} Rf5+ {[%emt 0:00:49]} 93. Be5 {[%emt 0:00:06]} Rf7 {[%emt 0:00:03]} 94. Rh6 {[%emt 0:04:02]} Ke7 {[%emt 0:00:29]} 95. Rh8 {[%emt 0:01:46]} Kd7 {[%emt 0:00:15]} 96. Rb8 {[%emt 0:00:21]} Ke7 {[%emt 0:00:33]} 97. Rb7+ {[%emt 0:00:09]} Ke8 {[%emt 0:00:04]} 98. Rb6 {[%emt 0:00:07]} Kd7 {[%emt 0:00:16]} 99. Bf6 {[%emt 0:00:39]} Ke8 {[%emt 0:00:17]} 100. Bg5 {[%emt 0:00:56]} Kd7 {[%emt 0:00:29]} 101. Rd6+ {[%emt 0:00:13]} Kc8 {[%emt 0:00:59]} 102. Rc6+ {[%emt 0:01:08]} Kd7 {[%emt 0:00:17]} 103. Bf6 {[%emt 0:00:10]} Ke8 {[%emt 0:00:38]} 104. Re6+ {[%emt 0:00:52]} Kd7 {[%emt 0:00:13]} 105. Be5 {[%emt 0:00:03]} Rh7 {[%emt 0:01:00]} 106. Rf6 {[%emt 0:00:16]} Ke7 {[%emt 0:00:48]} 107. Rf5 {[%emt 0:00:50]} Rf7 {[%emt 0:00:25]} 108. Bd6+ {[%emt 0:00:32]} Ke8 {[%emt 0:00:04]} 109. Rh5 {[%emt 0:00:19]} Kd7 {[%emt 0:00:07]} 110. Be5 {[%emt 0:00:41]} Ke7 {[%emt 0:00:24]} 111. Rh6 {[%emt 0:00:10]} Kd7 {[%emt 0:00:58]} 112. Ra6 {[%emt 0:01:02]} Ke7 {[%emt 0:00:25]} 113. Rd6 {[%emt 0:00:28]} Ke8 {[%emt 0:01:16]} 114. Ke6 {[%emt 0:00:24]} Re7+ {[%emt 0:00:05]} 115. Kf5 {[%emt 0:00:07]} Rd7 {[%emt 0:01:13]} 116. Ra6 {[%emt 0:00:39]} Rb7 {[%emt 0:00:42]} 117. Rd6 {[%emt 0:00:59]} Rd7 {[%emt 0:00:19]} 118. Rxd7 {[%emt 0:00:08]} Kxd7 {[%emt 0:05:45]} 1/2-1/2

[Event "Czech Extraliga 2023-24"]
[Site "Czech Republic"]
[Date "2024.04.06"]
[Round "10.6"]
[White "Baklan, Vladimir"]
[Black "Mladek, Richard"]
[Result "1-0"]
[ECO "B90"]
[WhiteElo "2531"]
[BlackElo "2400"]
[Annotator "RC"]
[PlyCount "85"]
[EventDate "2023.10.14"]
[EventCountry "CZE"]
[SourceTitle "playchess.com"]
[Source "ChessBase"]
[SourceQuality "1"]
[TimeControl "40/5400+30:1800+30"]

1. e4 {[%emt 0:00:03]} c5 {[%emt 0:00:06]} 2. Nf3 {[%emt 0:00:11]} d6 {[%emt 0:00:05]} 3. d4 {[%emt 0:01:47]} cxd4 {[%emt 0:00:07]} 4. Nxd4 {[%emt 0:00:02]} Nf6 {[%emt 0:00:07]} 5. Nc3 {[%emt 0:00:03]} a6 {[%emt 0:00:06]} 6. h3 {[%emt 0:01:47]} e5 {[%emt 0:00:26]} 7. Nf3 {[%emt 0:04:42]} Qc7 {[%emt 0:00:16]} 8. a4 {[%emt 0:08:15]} h6 {[%emt 0:04:10]} 9. g3 {[%emt 0:05:43]} Nc6 {[%emt 0:05:49]} 10. Bg2 {[%emt 0:04:34]} Nb4 {[%emt 0:02:19]} 11. O-O {[%emt 0:02:20]} Be6 {[%emt 0:00:50]} 12. a5 {[%emt 0:08:00]} Nc6 {[%emt 0:10:07]} 13. Nd5 {[%emt 0:09:57]} Bxd5 {[%emt 0:01:17]} 14. exd5 {[%emt 0:00:04]} Nxa5 {[%emt 0:02:56]} 15. b3 {[%emt 0:04:09]} Rc8 {[%emt 0:16:16]} 16. Bd2 {[%emt 0:18:17]} b6 {[%emt 0:00:26]} 17. Qe2 {[%emt 0:00:03]} Be7 {[%emt 0:05:00]} 18. Nh4 {[%emt 0:00:22]} O-O {[%emt 0:06:23]} 19. Nf5 {[%emt 0:00:24]} Bd8 {[%emt 0:03:17]} 20. Rfc1 {[%emt 0:03:12]} Qd7 {[%emt 0:04:33]} 21. Ne3 {[%emt 0:01:21]} Nb7 {[%emt 0:02:36]} 22. Rxa6 {[%emt 0:04:15]} Nc5 {[%emt 0:03:49]} 23. Raa1 {[%emt 0:01:02]} b5 {[%emt 0:02:13]} 24. Be1 {[%emt 0:04:45]} Bb6 {[%emt 0:02:41]} 25. Kh2 {[%emt 0:03:42]} Nce4 {[%emt 0:03:35]} 26. c4 {[%emt 0:00:53]} Bd4 {[%emt 0:00:57]} 27. Rab1 {[%emt 0:00:42]} Rb8 {[%emt 0:09:04]} 28. b4 {[%emt 0:06:13]} Ng5 {[%emt 0:05:36]} 29. c5 {[%emt 0:02:11]} dxc5 30. bxc5 {[%emt 0:00:41]} Bxe3 {[%emt 0:03:54]} 31. c6 {[%emt 0:02:54]} Qf5 {[%emt 0:02:05]} 32. Qxe3 {[%emt 0:00:33]} Nxd5 {[%emt 0:01:19]} 33. Bxd5 {[%emt 0:02:09]} e4 {[%emt 0:00:01]} 34. Bxe4 {[%emt 0:00:06]} Nxe4 {[%emt 0:00:26]} 35. c7 {[%emt 0:00:54]} Rbc8 {[%emt 0:01:11]} 36. Qd3 {[%emt 0:00:42]} Rfe8 {[%emt 0:02:50]} 37. Rxb5 {[%emt 0:00:26]} Qf6 {[%emt 0:00:03]} 38. Kg2 {[%emt 0:00:22]} Qa6 {[%emt 0:01:39]} 39. h4 {[%emt 0:01:35]} Qa8 {[%emt 0:00:49]} 40. Qf3 {[%emt 0:00:20]} Re6 {[%emt 0:00:29]} 41. Rc4 {[%emt 0:08:52]} Qa6 {[%emt 0:04:07]} 42. Rb8 {[%emt 0:01:19]} Nd6 {[%emt 0:00:46]} 43. Rc6 {[%emt 0:00:49]} 1-0